fUST/lending_fUST_20240605
["ID","MTS","AMOUNT","RATE_DAILY","PERIOD"]
[328580576,1717561848932,-464.482056,0.00022465,2]
[328580577,1717561848943,-500.0,0.00022465,2]
[328580578,1717561848952,-500.0,0.00022465,2]
[328580579,1717561848962,-500.0,0.00022465,2]
[328580580,1717561848972,-500.0,0.00022465,2]
[328580581,1717561848981,-500.0,0.00022465,2]
[328580582,1717561848993,-187.064142,0.00022465,2]
[328580583,1717561849003,-599.04088392,0.00022465,2]
[328580584,1717561849012,-500.0,0.00022465,2]
[328580585,1717561849021,-187.064142,0.00022465,2]
[328580586,1717561849031,-519.80598481,0.00022465,2]
[328580587,1717561849040,-151.0,0.00022465,2]
[328580588,1717561849049,-515.44234935,0.00022465,2]
[328580589,1717561849058,-500.0,0.00022465,2]
[328580590,1717561849068,-1688.34,0.00022465,2]
[328580591,1717561849077,-500.0,0.00022465,2]
[328580592,1717561849086,-397.841566,0.00022465,2]
[328580593,1717561849095,-500.0,0.00022465,2]
[328580594,1717561849105,-397.841566,0.00022465,2]
[328580595,1717561849114,-1313.01,0.00022465,2]
[328580596,1717561849123,-500.0,0.00022465,2]
[328580597,1717561849132,-500.0,0.00022465,2]
[328580598,1717561849142,-500.0,0.00022465,2]
[328580599,1717561849151,-173.675682,0.00022465,2]
[328580600,1717561849160,-500.0,0.00022465,2]
[328580601,1717561849169,-173.675682,0.00022465,2]
[328580602,1717561849178,-557.21,0.00022465,2]
[328580603,1717561849188,-500.0,0.00022465,2]
[328580604,1717561849199,-2203.85,0.00022499,2]
[328580605,1717561849208,-738.8,0.00022499,2]
[328580606,1717561849218,-29583.47744409,0.000225,2]
[328580607,1717561849227,-151.0,0.000225,2]
[328580608,1717561849236,-151.0,0.000225,2]
[328580609,1717561849245,-182.328369,0.000225,2]
[328580610,1717561849254,-182.328369,0.000225,2]
[328580611,1717561849263,-464.482056,0.000225,2]
[328580612,1717561849273,-464.482056,0.000225,2]
[328580613,1717561849282,-187.064142,0.000225,2]
[328580614,1717561849291,-187.064142,0.000225,2]
[328580615,1717561849300,-397.841566,0.000225,2]
[328580616,1717561849310,-397.841566,0.000225,2]
[328580617,1717561849319,-173.675682,0.000225,2]
[328580618,1717561849328,-173.675682,0.000225,2]
[328580619,1717561849337,-382.09,0.000226,2]
[328580620,1717561849347,-244.83512214,0.00022637,2]
[328580621,1717561849356,-151.0,0.00022715,5]
[328580622,1717561849364,-151.0,0.00022715,5]
[328580623,1717561849373,-2203.85,0.00022738,2]
[328580624,1717561849383,-738.8,0.00022738,2]
[328580625,1717561849392,-500.0,0.00022739,2]
[328580626,1717561849401,-500.0,0.00022739,2]
[328580627,1717561849410,-500.0,0.00022739,2]
[328580628,1717561849419,-500.0,0.00022739,2]
[328580629,1717561849429,-500.0,0.00022739,2]
[328580630,1717561849439,-500.0,0.00022739,2]
[328580631,1717561849447,-376.57119744,0.00022739,2]
[328580632,1717561849457,-500.0,0.00022739,2]
[328580633,1717561849466,-500.0,0.00022739,2]
[328580634,1717561849475,-500.0,0.00022739,2]
[328580635,1717561849484,-500.0,0.00022739,2]
[328580636,1717561849493,-151.0,0.00022739,2]
[328580637,1717561849502,-500.0,0.00022739,2]
[328580638,1717561849511,-251.009278,0.00022739,2]
[328580639,1717561849520,-2649.76,0.00022739,2]
[328580640,1717561849529,-182.328369,0.00022739,2]
[328580641,1717561849539,-182.328369,0.00022739,2]
[328580642,1717561849547,-500.0,0.00022739,2]
[328580643,1717561849556,-500.0,0.00022739,2]
[328580644,1717561849565,-500.0,0.00022739,2]
[328580645,1717561849574,-711.37,0.00022739,2]
[328580646,1717561849583,-516.24615663,0.00022739,2]
[328580647,1717561849592,-1823.91,0.00022739,2]
[328580648,1717561849602,-698.21,0.00022739,2]
[328580649,1717561849611,-500.0,0.00022739,2]
[328580650,1717561849620,-507.97047994,0.00022739,2]
[328580651,1717561849629,-500.0,0.00022739,2]
[328580652,1717561849638,-500.0,0.00022739,2]
[328580653,1717561849647,-500.0,0.00022739,2]
[328580654,1717561849658,-1200.15,0.00022739,2]
[328580655,1717561849667,-507.26253992,0.00022739,2]
[328580656,1717561849676,-625.59,0.00022739,2]
[328580657,1717561849685,-2362.89,0.00022739,2]
[328580658,1717561849695,-500.0,0.00022739,2]
[328580659,1717561849704,-500.0,0.00022739,2]
[328580660,1717561849714,-464.482056,0.00022739,2]
[328580661,1717561849723,-464.482056,0.00022739,2]
[328580662,1717561849732,-500.0,0.00022739,2]
[328580663,1717561849742,-500.0,0.00022739,2]
[328580664,1717561849751,-500.0,0.00022739,2]
[328580665,1717561849760,-500.0,0.00022739,2]
[328580666,1717561849769,-508.14630812,0.00022739,2]
[328580667,1717561849779,-187.064142,0.00022739,2]
[328580668,1717561849788,-511.75109738,0.00022739,2]
[328580669,1717561849798,-187.064142,0.00022739,2]
[328580670,1717561849807,-521.49619357,0.00022739,2]
[328580671,1717561849816,-1688.34,0.00022739,2]
[328580672,1717561849825,-500.0,0.00022739,2]
[328580673,1717561849836,-397.841566,0.00022739,2]
[328580674,1717561849845,-500.0,0.00022739,2]
[328580675,1717561849854,-1313.01,0.00022739,2]
[328580676,1717561849863,-397.841566,0.00022739,2]
[328580677,1717561849872,-500.0,0.00022739,2]
[328580678,1717561849881,-500.0,0.00022739,2]
[328580679,1717561849891,-618.33901584,0.00022739,2]
[328580680,1717561849900,-173.675682,0.00022739,2]
[328580681,1717561849912,-508.09092026,0.00022739,2]
[328580682,1717561849922,-173.675682,0.00022739,2]
[328580683,1717561849932,-557.21,0.00022739,2]
[328580684,1717561849942,-500.0,0.00022739,2]
[328580685,1717561849953,-955.51893046,0.00022759,2]
[328580686,1717561849962,-501.85,0.00022884,2]
[328580687,1717561849971,-166.666666,0.00022944,2]
[328580688,1717561849980,-155.36369356,0.00023,2]
[328580689,1717561849992,-1177.11737821,0.00023,2]
[328580690,1717561850001,-207.92934534,0.00023,2]
[328580691,1717561850011,-155.21584932,0.00023,2]
[328580692,1717561850020,-355.0,0.00023,2]
[328580693,1717561850031,-2203.85,0.00023012,2]
[328580694,1717561850040,-738.8,0.00023012,2]
[328580695,1717561850049,-500.0,0.00023013,2]
[328580696,1717561850059,-510.88667585,0.00023013,2]
[328580697,1717561850067,-510.8339245,0.00023013,2]
[328580698,1717561850076,-500.0,0.00023013,2]
[328580699,1717561850085,-500.0,0.00023013,2]
[328580700,1717561850095,-500.0,0.00023013,2]
[328580701,1717561850105,-500.0,0.00023013,2]
[328580702,1717561850114,-500.0,0.00023013,2]
[328580703,1717561850123,-500.0,0.00023013,2]
[328580704,1717561850132,-500.0,0.00023013,2]
[328580705,1717561850143,-151.0,0.00023013,2]
[328580706,1717561850152,-500.0,0.00023013,2]
[328580707,1717561850161,-2649.76,0.00023013,2]
[328580708,1717561850170,-182.328369,0.00023013,2]
[328580709,1717561850179,-182.328369,0.00023013,2]
[328580710,1717561850188,-500.0,0.00023013,2]
[328580711,1717561850198,-500.0,0.00023013,2]
[328580712,1717561850207,-500.0,0.00023013,2]
[328580713,1717561850216,-711.37,0.00023013,2]
[328580714,1717561850225,-1823.91,0.00023013,2]
[328580715,1717561850235,-698.21,0.00023013,2]
[328580716,1717561850244,-500.0,0.00023013,2]
[328580717,1717561850253,-500.0,0.00023013,2]
[328580718,1717561850263,-500.0,0.00023013,2]
[328580719,1717561850272,-500.0,0.00023013,2]
[328580720,1717561850281,-1200.15,0.00023013,2]
[328580721,1717561850291,-625.59,0.00023013,2]
[328580722,1717561850300,-2362.89,0.00023013,2]
[328580723,1717561850309,-500.0,0.00023013,2]
[328580724,1717561850318,-500.0,0.00023013,2]
[328580725,1717561850327,-464.482056,0.00023013,2]
[328580726,1717561850336,-464.482056,0.00023013,2]
[328580727,1717561850346,-572.26354166,0.00023013,2]
[328580728,1717561850432,-500.0,0.00023013,2]
[328580729,1717561850443,-500.0,0.00023013,2]
[328580730,1717561850452,-500.0,0.00023013,2]
[328580731,1717561850461,-187.064142,0.00023013,2]
[328580732,1717561850471,-187.064142,0.00023013,2]
[328580733,1717561850481,-1688.34,0.00023013,2]
[328580734,1717561850490,-500.0,0.00023013,2]
[328580735,1717561850500,-397.841566,0.00023013,2]
[328580736,1717561850509,-500.0,0.00023013,2]
[328580737,1717561850518,-1313.01,0.00023013,2]
[328580738,1717561850527,-397.841566,0.00023013,2]
[328580739,1717561850537,-500.0,0.00023013,2]
[328580740,1717561850546,-500.0,0.00023013,2]
[328580741,1717561850555,-557.21,0.00023013,2]
[328580742,1717561850565,-500.0,0.00023013,2]
[328580743,1717561850575,-151.0,0.00023063,5]
[328580744,1717561850584,-151.0,0.00023063,5]
[328580745,1717561850593,-647.05759395,0.00023103,2]
[328580746,1717561850602,-254.62875625,0.00023229,2]
[328580747,1717561850611,-672.32,0.00023277,3]
[328580748,1717561850620,-448.22,0.00023277,3]
[328580749,1717561850629,-173.675682,0.00023277,2]
[328580750,1717561850639,-173.675682,0.00023277,2]
[328580751,1717561850649,-738.8,0.00023286,2]
[328580752,1717561850657,-500.0,0.00023287,2]
[328580753,1717561850668,-354.16422526,0.00023287,2]
[328580754,1717561850677,-500.0,0.00023287,2]
[328580755,1717561850686,-500.0,0.00023287,2]
[328580756,1717561850696,-515.48458879,0.00023287,2]
[328580757,1717561850706,-500.0,0.00023287,2]
[328580758,1717561850715,-524.85754411,0.00023287,2]
[328580759,1717561850724,-500.0,0.00023287,2]
[328580760,1717561850733,-2649.76,0.00023287,2]
[328580761,1717561850743,-500.0,0.00023287,2]
[328580762,1717561850752,-355.39422911,0.00023287,2]
[328580763,1717561850761,-500.0,0.00023287,2]
[328580764,1717561850770,-711.37,0.00023287,2]
[328580765,1717561850779,-1823.91,0.00023287,2]
[328580766,1717561850789,-698.21,0.00023287,2]
[328580767,1717561850798,-500.0,0.00023287,2]
[328580768,1717561850807,-500.0,0.00023287,2]
[328580769,1717561850817,-500.0,0.00023287,2]
[328580770,1717561850826,-500.0,0.00023287,2]
[328580771,1717561850836,-1200.15,0.00023287,2]
[328580772,1717561850845,-625.59,0.00023287,2]
[328580773,1717561850854,-2362.89,0.00023287,2]
[328580774,1717561850863,-500.0,0.00023287,2]
[328580775,1717561850872,-500.0,0.00023287,2]
[328580776,1717561850882,-500.0,0.00023287,2]
[328580777,1717561850892,-500.0,0.00023287,2]
[328580778,1717561850901,-500.0,0.00023287,2]
[328580779,1717561850914,-1688.34,0.00023287,2]
[328580780,1717561850924,-500.0,0.00023287,2]
[328580781,1717561850933,-500.0,0.00023287,2]
[328580782,1717561850943,-1313.01,0.00023287,2]
[328580783,1717561850952,-500.0,0.00023287,2]
[328580784,1717561850962,-500.0,0.00023287,2]
[328580785,1717561850971,-557.21,0.00023287,2]
[328580786,1717561850980,-500.0,0.00023287,2]
[328580787,1717561850990,-355.0,0.00023288,2]
[328580788,1717561851000,-151.0,0.00023412,5]
[328580789,1717561851011,-151.0,0.00023412,5]
[328580790,1717561851020,-166.666666,0.00023456,2]
[328580791,1717561851029,-2203.85,0.0002356,2]
[328580792,1717561851038,-500.0,0.00023561,2]
[328580793,1717561851047,-500.0,0.00023561,2]
[328580794,1717561851056,-500.0,0.00023561,2]
[328580795,1717561851065,-500.0,0.00023561,2]
[328580796,1717561851075,-151.0,0.00023561,2]
[328580797,1717561851083,-500.0,0.00023561,2]
[328580798,1717561851093,-2649.76,0.00023561,2]
[328580799,1717561851102,-182.328369,0.00023561,2]
[328580800,1717561851112,-182.328369,0.00023561,2]
[328580801,1717561851121,-500.0,0.00023561,2]
[328580802,1717561851130,-500.0,0.00023561,2]
[328580803,1717561851139,-711.37,0.00023561,2]
[328580804,1717561851148,-1823.91,0.00023561,2]
[328580805,1717561851158,-698.21,0.00023561,2]
[328580806,1717561851167,-500.0,0.00023561,2]
[328580807,1717561851177,-500.0,0.00023561,2]
[328580808,1717561851186,-500.0,0.00023561,2]
[328580809,1717561851196,-500.0,0.00023561,2]
[328580810,1717561851206,-1200.15,0.00023561,2]
[328580811,1717561851215,-625.59,0.00023561,2]
[328580812,1717561851224,-2362.89,0.00023561,2]
[328580813,1717561851233,-500.0,0.00023561,2]
[328580814,1717561851243,-464.482056,0.00023561,2]
[328580815,1717561851253,-500.0,0.00023561,2]
[328580816,1717561851262,-464.482056,0.00023561,2]
[328580817,1717561851271,-500.0,0.00023561,2]
[328580818,1717561851281,-523.93329938,0.00023561,2]
[328580819,1717561851290,-500.0,0.00023561,2]
[328580820,1717561851300,-187.064142,0.00023561,2]
[328580821,1717561851310,-187.064142,0.00023561,2]
[328580822,1717561851320,-500.0,0.00023561,2]
[328580823,1717561851329,-1688.34,0.00023561,2]
[328580824,1717561851339,-397.841566,0.00023561,2]
[328580825,1717561851349,-444.05939699,0.00023561,2]
[328580826,1717561851358,-1313.01,0.00023561,2]
[328580827,1717561851368,-397.841566,0.00023561,2]
[328580828,1717561851377,-500.0,0.00023561,2]
[328580829,1717561851387,-500.0,0.00023561,2]
[328580830,1717561851396,-173.675682,0.00023561,2]
[328580831,1717561851406,-173.675682,0.00023561,2]
[328580832,1717561851415,-557.21,0.00023561,2]
[328580833,1717561851425,-500.0,0.00023561,2]
[328580834,1717561851434,-153.0,0.00023562,2]
[328580835,1717561851443,-229.946344,0.00023607,2]
[328580836,1717561851453,-197.986099,0.00023607,2]
[328580837,1717561851462,-955.51893046,0.00023704,2]
[328580838,1717561851472,-151.0,0.0002376,5]
[328580839,1717561851481,-151.0,0.0002376,5]
[328580840,1717561851490,-738.8,0.00023797,2]
[328580841,1717561851500,-9562.13864039,0.00023798,2]
[328580842,1717561851509,-180.0,0.000238,2]
[328580843,1717561851518,-500.0,0.000238,2]
[328580844,1717561851528,-156.36607145,0.0002382,2]
[328580845,1717561851537,-151.0,0.00023829,2]
[328580846,1717561851546,-2203.85,0.00023829,2]
[328580847,1717561851555,-7953.53133958,0.0002383,2]
[328580848,1717561851564,-182.328369,0.0002383,2]
[328580849,1717561851573,-182.328378,0.0002383,2]
[328580850,1717561851582,-464.482056,0.0002383,2]
[328580851,1717561851591,-464.48205698,0.0002383,2]
[328580852,1717561851600,-187.064142,0.0002383,2]
[328580853,1717561851610,-187.064134,0.0002383,2]
[328580854,1717561851619,-397.841566,0.0002383,2]
[328580855,1717561851628,-397.841573,0.0002383,2]
[328580856,1717561851638,-173.675682,0.0002383,2]
[328580857,1717561851647,-173.675689,0.0002383,2]
[328580858,1717561851656,-155.12097615,0.00023833,2]
[328580859,1717561851670,-2203.85,0.00023834,2]
[328580860,1717561851679,-2203.85,0.00023834,2]
[328580861,1717561851689,-2203.85,0.00023834,2]
[328580862,1717561851700,-2203.85,0.00023834,2]
[328580863,1717561851710,-2203.85,0.00023834,2]
[328580864,1717561851720,-2203.85,0.00023834,2]
[328580865,1717561851730,-2203.85,0.00023834,2]
[328580866,1717561851740,-2203.85,0.00023834,2]
[328580867,1717561851751,-2203.85,0.00023834,2]
[328580868,1717561851761,-2203.9098106,0.00023834,2]
[328580869,1717561851771,-738.8,0.00023834,2]
[328580870,1717561851782,-738.8,0.00023834,2]
[328580871,1717561851792,-738.8,0.00023834,2]
[328580872,1717561851803,-738.8,0.00023834,2]
[328580873,1717561851813,-738.8,0.00023834,2]
[328580874,1717561851823,-738.8,0.00023834,2]
[328580875,1717561851833,-738.8,0.00023834,2]
[328580876,1717561851844,-738.8,0.00023834,2]
[328580877,1717561851854,-738.8,0.00023834,2]
[328580878,1717561851863,-738.98131478,0.00023834,2]
[328580879,1717561851872,-500.0,0.00023835,2]
[328580880,1717561851882,-298.0353373,0.00023835,2]
[328580881,1717561851891,-500.0,0.00023835,2]
[328580882,1717561851900,-500.0,0.00023835,2]
[328580883,1717561851910,-500.0,0.00023835,2]
[328580884,1717561851924,-2649.76,0.00023835,2]
[328580885,1717561851933,-500.0,0.00023835,2]
[328580886,1717561851942,-265.82144059,0.00023835,2]
[328580887,1717561851951,-711.37,0.00023835,2]
[328580888,1717561851961,-10326.97,0.00023835,2]
[328580889,1717561851970,-10326.97,0.00023835,2]
[328580890,1717561851979,-10326.97,0.00023835,2]
[328580891,1717561851988,-10326.97,0.00023835,2]
[328580892,1717561851999,-10326.97,0.00023835,2]
[328580893,1717561852008,-10326.97,0.00023835,2]
[328580894,1717561852016,-10326.97,0.00023835,2]
[328580895,1717561852025,-10326.97,0.00023835,2]
[328580896,1717561852035,-10326.97,0.00023835,2]
[328580897,1717561852044,-10326.97,0.00023835,2]
[328580898,1717561852053,-10326.97,0.00023835,2]
[328580899,1717561852062,-10326.97,0.00023835,2]
[328580900,1717561852072,-10326.97,0.00023835,2]
[328580901,1717561852081,-10326.97,0.00023835,2]
[328580902,1717561852089,-10326.97,0.00023835,2]
[328580903,1717561852099,-10326.97,0.00023835,2]
[328580904,1717561852108,-10326.97,0.00023835,2]
[328580905,1717561852117,-10326.97,0.00023835,2]
[328580906,1717561852127,-10326.97,0.00023835,2]
[328580907,1717561852137,-1823.91,0.00023835,2]
[328580908,1717561852147,-698.21,0.00023835,2]
[328580909,1717561852156,-500.0,0.00023835,2]
[328580910,1717561852166,-500.0,0.00023835,2]
[328580911,1717561852176,-500.0,0.00023835,2]
[328580912,1717561852185,-378.13355723,0.00023835,2]
[328580913,1717561852195,-1200.15,0.00023835,2]
[328580914,1717561852205,-625.59,0.00023835,2]
[328580915,1717561852214,-2362.89,0.00023835,2]
[328580916,1717561852223,-500.0,0.00023835,2]
[328580917,1717561852306,-500.0,0.00023835,2]
[328580918,1717561852316,-500.0,0.00023835,2]
[328580919,1717561852325,-500.0,0.00023835,2]
[328580920,1717561852335,-580.33527783,0.00023835,2]
[328580921,1717561852344,-1688.34,0.00023835,2]
[328580922,1717561852353,-1313.01,0.00023835,2]
[328580923,1717561852363,-500.0,0.00023835,2]
[328580924,1717561852372,-500.0,0.00023835,2]
[328580925,1717561852383,-557.21,0.00023835,2]
[328580926,1717561852392,-500.0,0.00023835,2]
[328580927,1717561852402,-160.0,0.00023907,2]
[328580928,1717561852411,-166.666666,0.00023969,2]
[328580929,1717561852420,-500.0,0.00023971,2]
[328580930,1717561852429,-322.92,0.00023971,2]
[328580931,1717561852438,-10326.97,0.00023999,2]
[328580932,1717561852448,-10326.97,0.00023999,2]
[328580933,1717561852457,-10326.97,0.00023999,2]
[328580934,1717561852466,-10326.97,0.00023999,2]
[328580935,1717561852475,-10327.15798626,0.00023999,2]
[328580936,1717561852484,-69691.0,0.00024,2]
[328580937,1717561852493,-24722.01713225,0.00024,2]
[328580938,1717561852503,-420.0,0.000241,2]
[328580939,1717561852513,-374.48081427,0.00024109,2]
[328580940,1717561852523,-500.0,0.00024109,2]
[328580941,1717561852532,-500.43250036,0.00024109,2]
[328580942,1717561852542,-500.0,0.00024109,2]
[328580943,1717561852551,-2649.76,0.00024109,2]
[328580944,1717561852562,-500.0,0.00024109,2]
[328580945,1717561852572,-711.37,0.00024109,2]
[328580946,1717561852582,-1823.91,0.00024109,2]
[328580947,1717561852591,-698.21,0.00024109,2]
[328580948,1717561852600,-500.0,0.00024109,2]
[328580949,1717561852610,-500.0,0.00024109,2]
[328580950,1717561852619,-500.0,0.00024109,2]
[328580951,1717561852628,-1200.15,0.00024109,2]
[328580952,1717561852638,-625.59,0.00024109,2]
[328580953,1717561852647,-2362.89,0.00024109,2]
[328580954,1717561852656,-500.0,0.00024109,2]
[328580955,1717561852666,-500.0,0.00024109,2]
[328580956,1717561852677,-500.0,0.00024109,2]
[328580957,1717561852687,-273.39417288,0.00024109,2]
[328580958,1717561852698,-1688.34,0.00024109,2]
[328580959,1717561852707,-1313.01,0.00024109,2]
[328580960,1717561852717,-151.0,0.00024109,7]
[328580961,1717561852727,-151.0,0.00024109,7]
[328580962,1717561852737,-571.45946699,0.00024109,2]
[328580963,1717561852747,-626.68258528,0.00024109,2]
[328580964,1717561852756,-557.21,0.00024109,2]
[328580965,1717561852766,-200.0,0.0002411,2]
[328580966,1717561852776,-355.0,0.00024164,2]
[328580967,1717561852786,-153.0,0.00024356,2]
[328580968,1717561852795,-153.0,0.00024356,2]
[328580969,1717561852804,-153.0,0.00024356,2]
[328580970,1717561852814,-153.0,0.00024356,2]
[328580971,1717561852824,-153.0,0.00024356,2]
[328580972,1717561852833,-153.0,0.00024356,2]
[328580973,1717561852842,-500.0,0.00024383,2]
[328580974,1717561852851,-500.0,0.00024383,2]
[328580975,1717561852860,-2649.76,0.00024383,2]
[328580976,1717561852870,-500.0,0.00024383,2]
[328580977,1717561852881,-711.37,0.00024383,2]
[328580978,1717561852890,-1823.91,0.00024383,2]
[328580979,1717561852900,-698.21,0.00024383,2]
[328580980,1717561852911,-500.0,0.00024383,2]
[328580981,1717561852921,-500.0,0.00024383,2]
[328580982,1717561852931,-500.0,0.00024383,2]
[328580983,1717561852941,-1200.15,0.00024383,2]
[328580984,1717561852952,-625.59,0.00024383,2]
[328580985,1717561852961,-2362.89,0.00024383,2]
[328580986,1717561852970,-500.0,0.00024383,2]
[328580987,1717561852980,-500.0,0.00024383,2]
[328580988,1717561852990,-500.0,0.00024383,2]
[328580989,1717561853000,-1688.34,0.00024383,2]
[328580990,1717561853010,-1313.01,0.00024383,2]
[328580991,1717561853019,-557.21,0.00024383,2]
[328580992,1717561853028,-1463.18122857,0.000244,2]
[328580993,1717561853038,-195.43890857,0.00024415,2]
[328580994,1717561853047,-201.05402839,0.00024415,2]
[328580995,1717561853056,-308.26274171,0.00024415,2]
[328580996,1717561853065,-155.27646197,0.00024416,2]
[328580997,1717561853074,-173.15067714,0.00024416,2]
[328580998,1717561853083,-225.48496262,0.00024416,2]
[328580999,1717561853093,-320.0,0.00024455,2]
[328581000,1717561853102,-8221.29188015,0.00024465,2]
[328581001,1717561853111,-1291.78014265,0.00024465,2]
[328581002,1717561853120,-300.88518786,0.00024468,2]
[328581003,1717561853129,-166.666666,0.00024482,2]
[328581004,1717561853138,-150.93962415,0.00024553,4]
[328581005,1717561853147,-63500.0,0.0002457,3]
[328581006,1717561853157,-83500.0,0.0002458,2]
[328581007,1717561853166,-2000.0,0.00024638,2]
[328581008,1717561853175,-2000.0,0.00024647,2]
[328581009,1717561853185,-2000.0,0.00024648,2]
[328581010,1717561853194,-955.51893046,0.0002465,2]
[328581011,1717561853203,-236.40929999,0.00024654,2]
[328581012,1717561853212,-256.31018231,0.00024654,2]
[328581013,1717561853221,-230.77420148,0.00024656,2]
[328581014,1717561853230,-181549.12761223,0.00024656,2]
[328581015,1717561853239,-2000.0,0.00024656,2]
[328581016,1717561853249,-2000.0,0.00024656,2]
[328581017,1717561853258,-500.0,0.00024657,2]
[328581018,1717561853268,-2000.0,0.00024657,2]
[328581019,1717561853277,-500.0,0.00024657,2]
[328581020,1717561853286,-2649.76,0.00024657,2]
[328581021,1717561853295,-500.0,0.00024657,2]
[328581022,1717561853305,-711.37,0.00024657,2]
[328581023,1717561853314,-1823.91,0.00024657,2]
[328581024,1717561853323,-698.21,0.00024657,2]
[328581025,1717561853332,-229.40121814,0.00024657,2]
[328581026,1717561853342,-500.0,0.00024657,2]
[328581027,1717561853352,-500.0,0.00024657,2]
[328581028,1717561853361,-1200.15,0.00024657,2]
[328581029,1717561853371,-625.59,0.00024657,2]
[328581030,1717561853380,-2362.89,0.00024657,2]
[328581031,1717561853389,-544.2543556,0.00024657,2]
[328581032,1717561853399,-500.0,0.00024657,2]
[328581033,1717561853408,-500.0,0.00024657,2]
[328581034,1717561853418,-1688.34,0.00024657,2]
[328581035,1717561853427,-1313.01,0.00024657,2]
[328581036,1717561853437,-557.21,0.00024657,2]
[328581037,1717561853446,-500.0,0.00024658,2]
[328581038,1717561853455,-200.0,0.00024658,2]
[328581039,1717561853465,-380.0,0.00024658,2]
[328581040,1717561853474,-200.0,0.00024658,15]
[328581041,1717561853483,-500.0,0.00024658,2]
[328581042,1717561853492,-500.0,0.00024658,2]
[328581043,1717561853501,-500.0,0.00024658,2]
[328581044,1717561853511,-501.82669239,0.00024658,2]
[328581045,1717561853520,-500.0,0.00024658,2]
[328581046,1717561853529,-500.0,0.00024658,2]
[328581047,1717561853538,-499.99999999,0.00024658,2]
[328581048,1717561853547,-1612.02695426,0.0002475,17]
[328581049,1717561853556,-491.0,0.000248,2]
[328581050,1717561853566,-237.00922205,0.00024818,2]
[328581051,1717561853575,-500.0,0.00024931,6]
[328581052,1717561853585,-500.0,0.00024931,6]
[328581053,1717561853594,-2649.76,0.00024931,6]
[328581054,1717561853603,-500.0,0.00024931,6]
[328581055,1717561853612,-711.37,0.00024931,6]
[328581056,1717561853622,-1823.91,0.00024931,6]
[328581057,1717561853631,-698.21,0.00024931,6]
[328581058,1717561853640,-500.0,0.00024931,6]
[328581059,1717561853649,-585.77423503,0.00024931,6]
[328581060,1717561853659,-1200.15,0.00024931,6]
[328581061,1717561853668,-625.59,0.00024931,6]
[328581062,1717561853677,-2362.89,0.00024931,6]
[328581063,1717561853686,-500.0,0.00024931,6]
[328581064,1717561853696,-268.56007087,0.00024931,6]
[328581065,1717561853705,-1688.34,0.00024931,6]
[328581066,1717561853715,-1313.01,0.00024931,6]
[328581067,1717561853725,-200.0,0.00025,2]
[328581068,1717561853734,-1022.31736873,0.00025,2]
[328581069,1717561853743,-401.58078938,0.00025,2]
[328581070,1717561853752,-155.80490399,0.00025,2]
[328581071,1717561853762,-300.0,0.00025,2]
[328581072,1717561853771,-300.0,0.00025,2]
[328581073,1717561853781,-300.0,0.00025,2]
[328581074,1717561853791,-1845.14221887,0.00025,2]
[328581075,1717561853800,-60158.25320848,0.00025,2]